bitfinex-derivatives/quotes_SOLF0:USTF0_20240910
["timestamp","ask_amount","ask_price","bid_price","bid_amount"]
[1725929456890,3.7288,134.06,134.02,3.7295]
[1725929457290,3.7288,134.06,134.02,15.1995]
[1725929457888,3.7286,134.07,134.03,3.7295]
[1725929459597,3.7287,134.06,134.03,3.7295]
[1725929459798,3.7287,134.06,134.02,15.1997]
[1725929460599,37.61324604,134.06,134.01,1.3525]
[1725929460899,37.61324604,134.06,133.98,11.47]
[1725929460900,33.9,134.04,133.98,11.47]
[1725929461101,22.43,134.04,133.98,11.47]
[1725929461394,33.9,134.05,133.99,15.2005]
[1725929461695,26.22159243,134.04,133.99,15.2005]
[1725929461889,7.52109243,134.04,133.99,15.2005]
[1725929462088,7.52109243,134.04,133.99,3.7305]
[1725929462298,7.52109243,134.04,133.99,11.47]
[1725929462299,3.79159243,134.04,133.99,11.47]
[1725929462501,3.7297,134.03,133.99,11.47]
[1725929462691,7.46309226,134.03,133.99,11.47]
[1725929463193,3.7298,134.02,133.99,11.47]
[1725929464795,37.63339226,134.03,133.97,15.2011]
[1725929465195,3.73,134.02,133.97,15.2011]
[1725929465599,3.73,134.02,133.98,3.7308]
[1725929471505,3.7301,134.01,133.98,3.7308]
[1725929471703,3.7301,134.01,133.87,225.0]
[1725929471704,22.43,133.98,133.81,7.471]
[1725929472000,22.43,133.98,133.77,238.82354158]
[1725929472001,33.9,133.95,133.88,14.23]
[1725929472200,33.9,133.95,133.88,17.87567955]
[1725929472604,3.7327,133.92,133.88,17.87567955]
[1725929472800,26.19847118,133.95,133.9,11.47]
[1725929473103,1.3042,134.0,133.91,11.47]
[1725929473104,33.87,133.97,133.91,11.47]
[1725929473407,3.7316,133.96,133.91,15.2029]
[1725929473799,3.7316,133.96,133.92,3.7326]
[1725929474411,26.1312,133.97,133.93,15.2023]
[1725929474908,26.1312,133.97,133.93,11.47]
[1725929476311,3.7312,133.97,133.92,3.7324]
[1725929479109,3.7315,133.96,133.92,3.7324]
[1725929482016,3.7315,133.96,133.91,3.7328]
[1725929482516,3.7315,133.96,133.92,3.7326]
[1725929484615,3.7315,133.96,133.9,17.93]
[1725929484616,3.7315,133.96,133.91,3.7327]
[1725929486415,3.7315,133.96,133.92,3.7326]
[1725929490431,3.7318,133.95,133.91,3.7327]
[1725929490832,17.93,133.98,133.89,1.2803]
[1725929491128,22.4,133.97,133.89,1.2803]
[1725929491330,22.4,133.95,133.89,1.2803]
[1725929491521,3.7325,133.93,133.89,5.0135]
[1725929492734,3.7326,133.92,133.89,5.0135]
[1725929498039,3.7329,133.91,133.88,6.40567955]
[1725929498341,22.4,133.93,133.89,11.48]
[1725929498837,26.1325,133.93,133.9,3.733]
[1725929499338,3.7325,133.93,133.9,3.733]
[1725929500636,3.7325,133.93,133.9,15.213]
[1725929501229,3.7321,133.94,133.91,3.7328]
[1725929502133,3.7321,133.94,133.9,15.213]
[1725929505439,3.7324,133.93,133.89,15.2133]
[1725929506443,26.1328,133.92,133.88,10.13917955]
[1725929507432,26.1328,133.92,133.89,3.7334]
[1725929508144,3.7328,133.92,133.89,3.7334]
[1725929508341,22.4,133.98,133.91,11.48]
[1725929508640,22.4,133.98,133.94,11.48]
[1725929509037,26.131,133.98,133.94,15.212]
[1725929511943,37.611,133.98,133.94,3.732]
[1725929513842,33.88,133.98,133.95,3.7317]
[1725929514145,11.48,133.98,133.95,7.52145145]
[1725929514344,179.63498198,133.99,133.95,3.7317]
[1725929517043,179.63498198,133.99,133.95,7.38182867]
[1725929517850,3.731,133.98,133.95,7.38182867]
[1725929518048,3.731,133.98,133.95,3.65012867]
[1725929518255,3.731,133.98,133.94,15.2119]
[1725929518555,3.731,133.98,133.95,3.72330298]
[1725929520248,33.88,133.97,133.89,1.2749]
[1725929520453,33.88,133.97,133.9,12.8818]
[1725929520848,142.02418198,133.99,133.93,11.48]
[1725929520849,33.88,133.98,133.93,11.48]
[1725929521348,37.6111,133.98,133.94,3.7318]
[1725929522354,3.7313,133.97,133.93,15.2122]
[1725929522851,33.88,133.98,133.93,11.48]
[1725929523558,37.6111,133.98,133.94,3.732]
[1725929524646,3.7312,133.97,133.94,3.732]
[1725929525549,3.7312,133.97,133.93,15.2122]
[1725929526453,3.7319,133.95,133.91,3.7329]
[1725929527853,3.7321,133.94,133.91,3.7329]
[1725929530854,3.7318,133.95,133.92,3.7325]
[1725929531763,3.7321,133.94,133.91,3.7327]
[1725929535359,3.7319,133.95,133.92,3.7326]
[1725929537255,3.7316,133.96,133.93,3.7323]
[1725929537450,3.7316,133.96,133.93,15.2123]
[1725929538464,3.7314,133.97,133.94,3.7319]
[1725929538657,3.7314,133.97,133.95,3.7254479]
[1725929538859,3.7314,133.97,133.94,3.7319]
[1725929539260,3.7314,133.97,133.95,3.77137194]
[1725929539663,3.7314,133.97,133.94,3.7319]
[1725929540157,3.7318,133.95,133.91,3.7326]
[1725929540464,3.7318,133.95,133.92,11.48]
[1725929540969,3.7318,133.95,133.92,15.2124]
[1725929541466,3.7315,133.96,133.93,3.7323]
[1725929542765,3.7313,133.97,133.94,3.7318]
[1725929542965,3.7313,133.97,133.95,3.79647729]
[1725929543165,3.7313,133.97,133.94,15.2118]
[1725929543364,3.731,133.98,133.94,15.2118]
[1725929545458,3.731,133.98,133.95,3.7317]
[1725929545664,33.88,133.99,133.89,2.7059]
[1725929545866,33.88,133.99,133.92,11.48]
[1725929546472,3.7314,133.97,133.93,3.7321]
[1725929546871,3.7314,133.97,133.92,11.48]
[1725929547071,3.7315,133.96,133.92,11.48]
[1725929548371,3.7318,133.95,133.89,2.7059]
[1725929548563,11.48,133.97,133.92,11.48]
[1725929549261,3.76922956,134.0,133.89,2.7059]
[1725929549262,33.88,133.96,133.89,2.7059]
[1725929549463,33.88,133.96,133.89,14.1859]
[1725929549866,33.88,133.96,133.91,3.7328]
[1725929550077,33.88,133.96,133.9,11.48]
[1725929550271,11.48,133.97,133.92,11.48]
[1725929550472,3.7317,133.96,133.92,15.2124]
[1725929551367,15.22579549,133.97,133.92,3.7324]
[1725929551368,3.7319,133.95,133.92,3.7324]
[1725929551568,3.7319,133.95,133.91,3.7328]
[1725929552977,3.7322,133.94,133.9,15.2131]
[1725929553369,3.7322,133.94,133.9,3.7331]
[1725929553674,3.7322,133.94,133.9,15.2131]
[1725929555377,3.7322,133.94,133.91,3.7328]
[1725929560383,33.88,133.96,133.9,15.213]
[1725929561182,3.7322,133.94,133.9,15.213]
[1725929562776,3.7324,133.93,133.9,3.733]
[1725929576484,3.7326,133.92,133.89,5.0988]
[1725929576996,3.7329,133.91,133.88,7.37927955]
[1725929577288,33.88,133.93,133.88,3.64567955]
[1725929577480,33.88,133.93,133.86,11.48]
[1725929578092,3.7328,133.92,133.86,15.25081134]
[1725929578490,33.88,133.93,133.86,15.25081134]
[1725929578792,3.7329,133.91,133.88,3.7335]
[1725929579288,33.88,133.91,133.85,14.2133]
[1725929579693,37.52722103,133.91,133.86,3.64610088]
[1725929580086,33.88,133.91,133.86,3.64610088]
[1725929580288,33.88,133.91,133.85,2.7333]
[1725929580596,3.81983398,133.9,133.86,3.79667894]
[1725929581185,3.7336,133.89,133.86,7.53087894]
[1725929581387,3.81983398,133.9,133.86,7.53087894]
[1725929581590,7.55313398,133.9,133.86,7.53087894]
[1725929588201,7.55313398,133.9,133.87,3.734]
[1725929589104,7.55313398,133.9,133.86,3.79667894]
[1725929589105,11.48,133.89,133.86,7.53087894]
[1725929593616,29.95313398,133.9,133.87,3.734]
[1725929593813,41.43313398,133.9,133.87,3.734]
[1725929597906,37.6133,133.9,133.87,3.734]
[1725929598107,3.68267279,133.89,133.87,3.734]
[1725929600516,15.2135,133.89,133.85,1.4072]
[1725929600719,3.75261155,133.88,133.85,1.4072]
[1725929600923,11.48,133.87,133.85,1.4072]
[1725929601115,11.48,133.87,133.85,3.7345]
[1725929601818,11.48,133.87,133.84,3.7347]
[1725929602022,26.15261155,133.88,133.83,3.73281575]
[1725929602023,11.48,133.86,133.83,3.73281575]
[1725929602316,11.48,133.86,133.83,3.735]
[1725929602516,11.48,133.86,133.83,7.42747713]
[1725929602724,11.48,133.86,133.83,3.735]
[1725929603019,11.48,133.85,133.8,1.3162]
[1725929603521,8.8108,133.96,133.8,5.03630784]
[1725929603824,11.48,133.86,133.8,5.03630784]
[1725929604019,15.16125164,133.86,133.8,5.03630784]
[1725929604221,18.89555164,133.86,133.82,3.7352]
[1725929605123,15.16125164,133.86,133.83,3.7351]
[1725929612328,11.48,133.85,133.82,3.7353]
[1725929613029,15.2146,133.85,133.82,3.7353]
[1725929614724,11.48,133.85,133.82,3.7353]
[1725929615833,1.4085,133.91,133.84,11.48]
[1725929616133,3.82911667,133.9,133.85,11.48]
[1725929616325,26.19127566,133.91,133.86,11.48]
[1725929616630,26.19127566,133.91,133.87,3.75167814]
[1725929617230,29.92417566,133.91,133.87,7.48547814]
[1725929618027,7.52417566,133.91,133.87,7.48547814]
[1725929619928,19.00417566,133.91,133.87,7.48547814]
[1725929620132,15.27127566,133.91,133.87,7.48547814]
[1725929620322,3.79127566,133.91,133.87,7.48547814]
[1725929620528,11.48,133.92,133.88,3.7336]
[1725929621034,2.6772,133.97,133.89,3.7334]
[1725929621227,11.48,133.93,133.89,3.7334]
[1725929621428,3.69760898,133.92,133.89,3.7334]
[1725929621933,3.69760898,133.92,133.88,3.7337]
[1725929623428,15.2125,133.93,133.88,15.2137]
[1725929623734,3.76988464,133.92,133.89,3.7334]
[1725929623931,3.76988464,133.92,133.9,3.76092118]
[1725929625542,11.48,133.93,133.9,3.76092118]
[1725929626130,15.2829294,133.93,133.9,3.76092118]
[1725929628234,15.2829294,133.93,133.89,3.7334]
[1725929628831,3.8029294,133.93,133.9,7.38105928]
[1725929629038,7.52672415,133.94,133.9,3.7331]
[1725929629341,11.48,133.96,133.9,15.25707201]
[1725929629636,11.48,133.96,133.91,1.3042]
[1725929630233,15.2117,133.96,133.92,3.7326]
[1725929630836,3.6631698,133.95,133.92,7.48763847]
[1725929631538,7.3949698,133.95,133.92,3.75503847]
[1725929632340,7.3949698,133.95,133.91,5.037]
[1725929632541,7.3949698,133.95,133.91,8.69038822]
[1725929636244,15.2122,133.94,133.91,4.95758822]
[1725929636842,15.2122,133.94,133.91,8.69048822]
[1725929638146,15.2119,133.95,133.92,3.7326]
[1725929638344,11.48,133.95,133.92,3.7326]
[1725929639245,11.48,133.95,133.91,4.95758822]
[1725929640545,3.7322,133.94,133.91,1.3042]
[1725929640946,3.7322,133.94,133.91,5.07893224]
[1725929641145,11.48,133.93,133.88,3.64144051]
[1725929642043,3.7327,133.92,133.88,3.7335]
[1725929643142,3.7327,133.92,133.88,7.51065888]
[1725929644144,3.7327,133.92,133.89,3.7334]
[1725929652352,11.48,133.91,133.87,1.3262]
[1725929652956,3.7333,133.9,133.87,5.14135572]
[1725929653850,3.7333,133.9,133.87,3.81515572]
[1725929654155,3.7333,133.9,133.85,11.48]
[1725929654350,3.7333,133.9,133.85,15.17454347]
[1725929654546,3.7333,133.9,133.87,3.7339]
[1725929668178,3.7335,133.89,133.86,3.7342]
[1725929671266,3.70704385,133.9,133.86,3.7342]
[1725929671267,3.7333,133.9,133.86,11.48]
[1725929671472,11.48,133.92,133.86,11.48]
[1725929671875,3.7329,133.91,133.88,3.7336]
[1725929673279,25.1624,133.96,133.89,3.7334]
[1725929673280,11.48,133.93,133.89,3.7334]
[1725929673782,15.2125,133.93,133.89,3.7334]
[1725929673975,11.48,133.93,133.9,3.733]
[1725929674577,15.2122,133.94,133.88,11.48]
[1725929675276,15.2122,133.94,133.9,3.733]
[1725929675679,15.2122,133.94,133.88,11.48]
[1725929675878,15.2122,133.94,133.91,3.7329]
[1725929676782,11.48,133.94,133.91,3.7329]
[1725929680379,3.7319,133.95,133.91,3.7329]
[1725929683881,3.7321,133.94,133.91,3.7329]
[1725929689387,3.7324,133.93,133.89,16.56919506]
[1725929689588,15.13516245,133.98,133.92,11.48]
[1725929690285,3.7313,133.97,133.93,3.7321]
[1725929690981,3.7313,133.97,133.94,3.732]
[1725929692588,15.2115,133.96,133.92,3.7324]
[1725929693791,11.48,133.95,133.91,3.7328]
[1725929694287,3.65516245,133.98,133.91,11.48]
[1725929694487,11.48,133.97,133.91,11.48]
[1725929694991,3.7316,133.96,133.92,3.7323]
[1725929696284,3.7316,133.96,133.91,11.48]
[1725929696484,3.7316,133.96,133.9,2.5918]
[1725929696485,3.76427798,133.98,133.92,11.48]
[1725929696691,15.24427798,133.98,133.92,11.48]
[1725929696894,15.24427798,133.98,133.93,3.7322]
[1725929696901,3.7313,133.97,133.93,3.7322]
[1725929702497,3.731,133.98,133.93,11.48]
[1725929702698,3.731,133.98,133.94,1.3349]
[1725929704099,3.731,133.98,133.95,3.7317]
[1725929706502,141.99065841,134.0,133.96,3.7315]
[1725929706703,157.19993481,134.0,133.96,3.7315]
[1725929707101,153.47065841,134.0,133.96,3.7315]
[1725929707301,157.13422726,134.0,133.96,3.7315]
[1725929707700,160.86472726,134.0,133.96,3.7315]
[1725929708207,160.86472726,134.0,133.96,7.47384324]
[1725929710907,160.86472726,134.0,133.96,3.7315]
[1725929711102,3.7307,133.99,133.96,3.7315]
[1725929723510,141.99065841,134.0,133.96,3.80197222]
[1725929723716,141.99065841,134.0,133.94,1.3349]
[1725929723717,141.99065841,134.0,133.98,11.48]
[1725929723914,141.99065841,134.0,133.99,3.7963734]
[1725929724121,141.99065841,134.0,133.99,7.5269734]
[1725929725411,3.7298,134.03,133.99,19.0069734]
[1725929728813,3.7293,134.04,134.0,15.2103]
[1725929729720,3.7293,134.04,133.99,19.0068734]
[1725929729721,3.7295,134.03,133.99,19.0068734]
[1725929730023,3.7295,134.03,133.98,11.48]
[1725929730024,11.48,134.03,133.98,11.48]
[1725929730521,3.7298,134.02,133.98,15.2108]
[1725929730817,11.48,134.03,133.98,15.21133778]
[1725929731021,11.48,134.02,133.95,2.7118]
[1725929731222,11.48,134.02,133.95,6.51292078]
[1725929731421,3.70969386,134.01,133.95,2.7118]
[1725929731627,3.7306,134.0,133.96,15.2114]
[1725929731817,3.7306,134.0,133.97,3.68730359]
[1725929732122,3.7302,134.01,133.97,7.41830359]
[1725929732316,3.7302,134.01,133.97,15.211]
[1725929732516,3.67377622,134.02,133.98,3.67265673]
[1725929732726,3.7298,134.03,133.99,15.2105]
[1725929732926,15.18325599,134.04,133.99,15.2105]
[1725929733433,11.48,134.04,133.99,15.2105]
[1725929734222,3.7299,134.02,133.99,15.2105]
[1725929735623,11.48,134.04,134.0,3.7301]
[1725929737126,3.7295,134.03,134.0,3.7301]
[1725929737825,11.48,134.04,133.99,11.48]
[1725929738830,3.7296,134.03,133.99,15.2104]
[1725929739222,3.7296,134.03,133.99,11.48]
[1725929740118,3.7296,134.03,134.0,3.7304]
[1725929746226,3.7294,134.04,134.0,3.7304]
[1725929746419,3.7294,134.04,134.0,15.2104]
[1725929749332,3.7294,134.04,134.01,3.7301]
[1725929754432,3.7291,134.05,134.01,15.2101]
[1725929754737,3.7291,134.05,134.02,3.7298]
[1725929754928,3.7291,134.05,134.02,15.2098]
[1725929755728,3.7288,134.06,134.02,15.2098]
[1725929758137,3.7292,134.05,134.01,15.21]
[1725929759339,3.7292,134.05,134.02,3.7298]
[1725929759634,3.7293,134.04,133.95,6.49192728]
[1725929759828,3.7293,134.04,134.01,11.48]
[1725929764229,3.7293,134.04,134.01,15.2101]
[1725929765936,33.88,134.06,134.01,15.2101]
[1725929766834,3.7291,134.05,134.01,15.2101]
[1725929768339,3.7294,134.04,133.95,6.49192728]
[1725929768638,3.7294,134.04,134.01,11.48]
[1725929769138,3.7291,134.05,134.02,11.48]
[1725929769535,3.7291,134.05,134.02,15.2096]
[1725929769738,3.7291,134.05,134.02,18.91687679]
[1725929770940,3.7291,134.05,134.02,15.2096]
[1725929771644,3.7287,134.06,134.02,15.2096]
[1725929772545,3.7287,134.06,134.02,18.96724233]
[1725929774142,3.729,134.05,134.02,18.96724233]
[1725929775138,3.7293,134.04,134.02,3.75764233]
[1725929775339,3.7293,134.04,134.01,15.21]
[1725929775942,3.7293,134.04,134.02,3.81435863]
[1725929776643,22.4,134.07,134.03,11.48]
[1725929777147,3.7288,134.06,134.03,11.48]
[1725929779835,3.729,134.05,134.02,3.81435863]
[1725929780039,3.729,134.05,134.01,15.21]
[1725929780350,3.729,134.05,134.02,3.64543839]
[1725929780642,33.88,134.05,134.0,11.48]
[1725929781442,3.7297,134.03,134.0,15.15593282]
[1725929785247,3.7294,134.04,134.01,11.48]
[1725929785750,3.7289,134.06,134.01,11.48]
[1725929785949,37.53290014,134.07,134.01,11.48]
[1725929786351,3.7291,134.05,134.01,15.21]
[1725929788245,3.7293,134.04,134.01,15.21]
[1725929788440,3.7293,134.04,134.01,11.48]
[1725929789047,3.7293,134.04,134.01,15.2101]
[1725929789653,3.7291,134.05,134.02,3.7298]
[1725929790049,3.7295,134.04,134.01,12.7722]
[1725929791055,3.7295,134.04,134.01,16.5023]
[1725929799058,3.65290014,134.07,134.01,12.7722]
[1725929799356,3.7291,134.05,134.02,3.7298]
[1725929799857,22.4,134.04,134.01,1.2922]
[1725929800662,3.7297,134.03,134.0,3.67593282]
[1725929800855,3.7297,134.03,133.99,3.7305]
[1725929801457,3.7297,134.03,134.0,3.64599104]
[1725929801652,3.7297,134.03,133.98,11.48]
[1725929801653,3.7299,134.02,133.98,3.7308]
[1725929801962,3.7299,134.02,133.98,7.37940278]
[1725929803766,3.70829973,134.03,133.99,11.48]
[1725929803956,33.88,134.04,133.99,11.48]
[1725929804161,3.66678557,134.03,133.99,15.29454654]
[1725929805168,3.7298,134.02,133.99,19.02504654]
[1725929805461,3.7298,134.02,133.99,15.2105]
[1725929818192,3.7297,134.03,134.0,3.7303]
[1725929824293,3.73,134.02,133.99,11.48]
[1725929824590,37.64240008,134.04,133.99,11.48]
[1725929825387,3.73,134.02,133.99,11.48]
[1725929825793,37.64240008,134.04,133.99,11.48]
[1725929826193,3.7297,134.03,134.0,3.7303]
[1725929828793,3.7297,134.03,133.99,15.2105]
[1725929829391,2.6694,134.09,134.0,11.48]
[1725929829586,22.4,134.07,134.03,11.48]
[1725929829984,26.1287,134.07,134.03,15.2094]
[1725929830184,26.1287,134.07,134.0,1.3891]
[1725929830185,22.4,134.07,134.04,11.48]
[1725929830588,15.16479405,134.09,134.0,1.3891]
[1725929830589,26.08479405,134.09,134.02,11.48]
[1725929830784,22.4,134.07,134.02,11.48]
[1725929831188,22.4,134.07,134.0,5.08135617]
[1725929831390,22.4,134.07,134.03,11.48]
[1725929831593,26.1286,134.07,134.03,15.2094]
[1725929834794,26.1286,134.07,134.03,3.7294]
[1725929834996,26.1286,134.07,134.03,15.2094]
[1725929835688,3.7287,134.06,134.02,3.7297]
[1725929835888,3.7287,134.06,134.02,15.2097]
[1725929840398,3.729,134.05,134.02,15.2097]
[1725929841396,33.88,134.07,134.03,15.2094]
[1725929841895,3.7289,134.06,134.03,15.2094]
[1725929842697,3.729,134.05,134.03,11.48]
[1725929844105,3.729,134.05,134.02,15.2097]
[1725929844510,3.7293,134.04,134.02,11.48]
[1725929845303,26.129,134.05,134.02,11.48]
[1725929845610,11.48,134.07,134.02,15.2096]
[1725929845611,22.4,134.06,134.02,15.2096]
[1725929846112,26.1289,134.06,134.02,15.2096]
[1725929846905,26.1289,134.06,134.03,11.48]
[1725929847609,26.1289,134.06,134.02,3.7296]
[1725929847610,3.729,134.05,134.02,3.7296]
[1725929847807,3.729,134.05,134.02,15.2096]
[1725929848510,3.7293,134.04,134.02,11.48]
[1725929850311,3.729,134.05,134.02,15.2098]
[1725929855106,22.4,134.07,134.03,15.2095]
[1725929856015,26.1286,134.07,134.04,3.7292]
[1725929856614,3.7288,134.06,134.03,3.7294]
[1725929859618,37.6085,134.07,134.03,3.7294]
[1725929860220,26.1285,134.07,134.04,3.7292]
[1725929860819,26.1285,134.07,134.04,15.2092]
[1725929863714,26.1285,134.07,134.03,3.7294]
[1725929863715,3.7287,134.06,134.03,3.7294]
[1725929866726,26.1285,134.07,134.03,15.2094]
[1725929874631,3.7288,134.06,134.03,15.2094]
[1725929875427,3.7288,134.06,134.02,15.2097]
[1725929875732,22.4,134.07,134.02,15.2097]
[1725929876233,33.88,134.07,134.02,11.48]
[1725929876427,22.4,134.05,134.01,3.7299]
[1725929876838,29.93664731,134.05,134.01,3.7299]
[1725929877222,26.1292,134.05,134.01,3.7299]
[1725929877528,3.7292,134.05,134.02,15.2098]
[1725929877724,3.7292,134.05,134.02,18.85225369]
[1725929878226,3.7292,134.05,134.03,11.48]
[1725929878424,3.7288,134.06,134.03,15.2095]
[1725929880131,26.1285,134.07,134.03,11.48]
[1725929881031,26.1285,134.07,134.03,15.2094]
[1725929881835,26.1288,134.06,134.02,7.37225369]
[1725929884036,26.1288,134.06,134.03,3.7295]
[1725929884731,22.4,134.06,134.03,3.7295]
[1725929884927,26.1291,134.06,134.02,3.64245369]
[1725929885335,26.1291,134.06,134.03,3.7298]
[1725929886131,141.8850487,134.09,134.04,3.7296]
[1725929886328,22.4,134.08,134.04,3.7296]
[1725929886737,26.11604902,134.08,134.04,3.7296]
[1725929886936,37.59604902,134.08,134.04,3.7296]
[1725929887137,3.7288,134.07,134.04,3.7296]
[1725929889341,41.32464902,134.08,134.04,3.7296]
[1725929889541,41.32464902,134.08,134.05,3.7293]
[1725929890642,41.32464902,134.08,134.04,3.7295]
[1725929898540,29.84464902,134.08,134.04,3.7295]
[1725929898736,29.84464902,134.08,134.05,3.7292]
[1725929902956,29.84464902,134.08,134.04,3.7295]
[1725929904343,29.84464902,134.08,133.92,7.4652]
[1725929904344,22.4,134.05,133.92,7.4652]
[1725929904549,22.4,134.05,134.0,11.48]
[1725929904749,22.4,134.05,134.0,15.19557884]
[1725929905247,26.1295,134.05,134.02,3.7301]
[1725929906145,22.4,134.04,133.92,7.4652]
[1725929906345,22.4,134.04,133.99,11.48]
[1725929906654,26.1298,134.04,134.0,3.7306]
[1725929907250,26.13,134.03,134.0,3.7306]
[1725929907656,26.13,134.03,133.98,3.6749123]
[1725929907657,3.7303,134.02,133.98,3.6749123]
[1725929907848,3.7303,134.02,133.97,11.48]
[1725929908053,3.7303,134.02,133.98,3.69737582]
[1725929908259,3.7303,134.02,133.98,7.42847582]
[1725929908454,3.7303,134.02,133.98,3.69737582]
[1725929908663,11.48,134.04,133.99,11.48]
[1725929908859,30.00834323,134.07,134.01,11.48]
[1725929909064,3.729,134.07,134.03,11.48]
[1725929909256,11.48,134.08,134.04,3.7294]
[1725929909562,15.17439015,134.08,134.04,15.2094]
[1725929910161,18.90299015,134.08,134.04,15.2094]
[1725929911362,15.2086,134.08,134.04,15.2094]
[1725929912356,11.48,134.08,134.05,3.7293]
[1725929912961,22.4,134.07,134.05,3.7293]
[1725929913360,22.4,134.07,134.04,15.2095]
[1725929918067,15.2085,134.08,134.04,15.2095]
[1725929922963,22.4,134.07,134.04,15.2095]
[1725929925772,26.1288,134.07,134.04,15.2095]
[1725929926369,22.4,134.07,134.04,15.2095]
[1725929926573,26.1286,134.08,134.05,3.7292]
[1725929927174,3.7281,134.1,134.07,15.2088]
[1725929927370,22.4,134.12,134.08,11.48]
[1725929927972,22.4,134.12,134.03,1.3845]
[1725929927973,22.4,134.12,134.09,11.48]
[1725929928473,22.4,134.14,134.09,11.48]
[1725929929179,22.4,134.14,134.09,3.7281]
[1725929929475,33.88,134.14,134.09,15.2081]
[1725929929874,3.7275,134.12,134.09,11.48]
[1725929930177,22.4,134.12,134.09,11.48]
[1725929930364,52.4247213,134.12,134.09,11.48]
[1725929930569,3.7278,134.11,134.09,11.48]
[1725929930774,22.4,134.12,134.09,11.48]
[1725929930971,52.42471213,134.12,134.09,11.48]
[1725929931172,22.4,134.11,134.09,11.48]
[1725929932274,3.7275,134.12,134.09,11.48]
[1725929932479,26.1275,134.12,134.09,11.48]
[1725929932882,56.15220549,134.12,134.09,11.48]
[1725929933071,26.1275,134.12,134.09,11.48]
[1725929933777,56.15197381,134.12,134.09,11.48]
[1725929933975,22.4,134.11,134.09,11.48]
[1725929934780,22.4,134.11,134.08,15.2084]
[1725929936090,26.1277,134.11,134.07,3.7287]
[1725929937989,3.728,134.1,134.07,3.7287]
[1725929941791,26.04257811,134.1,134.03,1.3845]
[1725929941980,33.88,134.09,134.03,1.3845]
[1725929942185,33.88,134.09,134.04,11.48]
[1725929942389,37.6083,134.09,134.06,3.729]
[1725929945287,37.6083,134.09,134.05,3.7292]
[1725929945288,3.7285,134.08,134.05,3.7292]
[1725929948701,3.7288,134.07,134.04,3.7294]
[1725929948894,33.88,134.09,134.04,11.48]
[1725929949893,3.7286,134.08,134.05,3.7292]
[1725929953607,22.4,134.07,134.04,3.7295]
[1725929953901,26.1289,134.07,134.04,3.7295]
[1725929955708,3.7291,134.06,134.03,15.2098]
[1725929955902,26.1291,134.06,134.03,3.7298]
[1725929956810,3.7293,134.05,134.02,5.0654]
[1725929957196,22.4,134.06,134.02,1.3353]
[1725929957197,26.1292,134.06,134.02,1.3353]
[1725929958100,26.1292,134.06,134.03,3.7297]
[1725929974111,3.7289,134.07,134.04,3.7295]
[1725929974516,33.88,134.08,134.03,11.48]
[1725929974819,3.7288,134.07,134.04,3.7295]
[1725929975411,15.2088,134.07,134.04,3.7295]
[1725929975716,37.6088,134.07,134.04,3.7295]
[1725929991736,22.4,134.09,134.05,3.7291]
[1725929991942,33.88,134.09,134.05,3.7291]
[1725929992238,18.98001255,134.1,134.04,11.48]
[1725929992432,41.38001255,134.1,134.04,11.48]
[1725929993030,41.38001255,134.1,134.06,3.7289]
[1725929995331,3.7281,134.1,134.06,3.7289]